bitfinex/quotes_BTCUSD_20241009
["timestamp","ask_amount","ask_price","bid_price","bid_amount"]
[1728480015355,0.24968378,62014.0,62013.0,0.053]
[1728480015621,0.43600981,62014.0,62013.0,0.03]
[1728480015858,0.43600981,62014.0,62013.0,0.037]
[1728480016091,0.43600981,62014.0,62013.0,0.032]
[1728480016331,0.43700981,62014.0,62013.0,0.035]
[1728480016564,0.43700981,62014.0,62013.0,0.03]
[1728480016796,0.43900981,62014.0,62013.0,0.03]
[1728480017031,0.44000981,62014.0,62013.0,0.03]
[1728480017727,0.70810981,62014.0,62013.0,0.03]
[1728480019616,0.161274,62006.0,62005.0,0.24183992]
[1728480019852,0.161274,62006.0,62003.0,0.0492649]
[1728480019853,0.42710503,62004.0,62003.0,0.0492649]
[1728480020078,0.42710503,62004.0,61997.0,0.24183992]
[1728480020079,0.240795,61998.0,61997.0,0.24183992]
[1728480020321,0.0795,61998.0,61997.0,0.24183992]
[1728480020584,0.25326842,62014.0,61997.0,0.24183992]
[1728480020585,0.586963,62004.0,61997.0,0.00563214]
[1728480020812,0.586963,62004.0,61996.0,0.322596]
[1728480020813,0.2644,62004.0,61998.0,0.322589]
[1728480021035,0.2644,62004.0,61999.0,0.322585]
[1728480021266,0.2644,62004.0,62002.0,0.023]
[1728480021509,0.09900549,62003.0,61995.0,0.1]
[1728480021734,0.322581,62000.0,61996.0,0.023]
[1728480021952,0.09900549,62003.0,61996.0,0.023]
[1728480022185,0.161298,61997.0,61996.0,0.023]
[1728480022457,0.322575,62001.0,61996.0,0.023]
[1728480022458,0.322581,62000.0,61996.0,0.023]
[1728480022683,0.161296,61998.0,61996.0,0.024642]
[1728480022898,0.2419412,61998.0,61996.0,0.024642]
[1728480023382,0.0806452,61998.0,61997.0,0.184298]
[1728480023866,0.322565,62003.0,61998.0,0.023]
[1728480023867,0.161293,61999.0,61998.0,0.023]
[1728480024323,0.161293,61999.0,61997.0,0.023]
[1728480024810,0.16129,62000.0,61997.0,0.023]
[1728480025031,0.001,61998.0,61997.0,0.023]
[1728480025258,0.322565,62003.0,61997.0,0.023]
[1728480025482,0.161286,62002.0,62001.0,0.03]
[1728480027233,0.002,62002.0,62001.0,0.03]
[1728480027481,0.163285,62002.0,62001.0,0.03]
[1728480027717,0.002,62002.0,62001.0,0.03]
[1728480028451,0.002,62002.0,62001.0,0.031]
[1728480028682,0.002,62002.0,62001.0,0.054]
[1728480030150,0.002,62002.0,62001.0,0.215287]
[1728480032771,0.002,62002.0,62001.0,0.215287]
[1728480035840,0.002,62002.0,62001.0,0.216929]
[1728480036534,0.002,62002.0,62001.0,0.055642]
[1728480036767,0.48249649,62002.0,62001.0,0.055642]
[1728480037000,0.48249649,62002.0,62001.0,0.032642]
[1728480037719,0.2807,62002.0,62001.0,0.032642]
[1728480037959,0.441985,62002.0,62001.0,0.032642]
[1728480039354,0.2807,62002.0,62001.0,0.055642]
[1728480040760,0.2807,62002.0,62001.0,0.216929]
[1728480041004,0.002,62002.0,62001.0,0.316929]
[1728480041279,0.002,62002.0,62001.0,0.47776664]
[1728480045531,0.002,62002.0,62001.0,0.52598058]
[1728480045782,0.002,62002.0,62001.0,0.47776664]
[1728480046261,0.161271,62008.0,62002.0,0.123]
[1728480046485,0.161271,62008.0,62004.0,0.023]
[1728480047419,0.522433,62010.0,62003.0,0.023]
[1728480047646,0.322541,62008.0,62002.0,0.023]
[1728480047883,0.161276,62006.0,62002.0,0.184284]
[1728480048126,0.322541,62008.0,62004.0,0.023]
[1728480048127,0.161272,62007.0,62004.0,0.023]
[1728480048584,0.322541,62008.0,62004.0,0.023]
[1728480048867,0.322541,62008.0,62004.0,0.027]
[1728480049100,0.161273,62007.0,62004.0,0.023]
[1728480049321,0.161272,62007.0,62004.0,0.027]
[1728480049563,0.161268,62009.0,62004.0,0.028]
[1728480049810,0.1999,62010.0,62004.0,0.024]
[1728480050089,0.1999,62010.0,62009.0,0.161266]
[1728480050330,0.08,62013.0,62012.0,0.184259]
[1728480050561,0.32183992,62013.0,62012.0,0.184259]
[1728480050786,0.08,62013.0,62012.0,0.184259]
[1728480052388,0.084,62013.0,62012.0,0.184259]
[1728480052621,0.084,62013.0,62012.0,0.185259]
[1728480052622,0.091,62013.0,62012.0,0.185259]
[1728480055559,0.091,62013.0,62012.0,0.024]
[1728480056592,0.091,62013.0,62012.0,0.162259]
[1728480056684,0.091,62013.0,62012.0,0.185259]
[1728480057645,0.091,62013.0,62012.0,0.001]
[1728480057910,0.091,62013.0,62012.0,0.185259]
[1728480058131,0.091,62013.0,62012.0,0.162259]
[1728480058351,0.091,62013.0,62012.0,0.185259]
[1728480059720,0.091,62013.0,62012.0,0.024]
[1728480059951,0.091,62013.0,62012.0,0.162259]
[1728480060180,0.091,62013.0,62012.0,0.185259]
[1728480060405,0.091821,62013.0,62012.0,0.001]
[1728480060876,0.091821,62013.0,62012.0,0.024]
[1728480061156,0.091821,62013.0,62012.0,0.001]
[1728480061395,0.091821,62013.0,62012.0,0.185259]
[1728480061901,0.011821,62013.0,62012.0,0.34609664]
[1728480062132,0.011821,62013.0,62012.0,0.49441116]
[1728480062387,0.011821,62013.0,62012.0,0.51856842]
[1728480062636,0.011821,62013.0,62012.0,0.54272568]
[1728480062884,0.011821,62013.0,62012.0,0.44609664]
[1728480063118,0.007821,62013.0,62012.0,0.54269746]
[1728480063374,0.001821,62013.0,62012.0,0.54769746]
[1728480063616,0.001821,62013.0,62012.0,0.45109664]
[1728480063848,0.002821,62013.0,62012.0,0.45109664]
[1728480064073,0.002821,62013.0,62012.0,0.52353511]
[1728480064331,0.001821,62013.0,62012.0,0.52353511]
[1728480064554,0.001821,62013.0,62012.0,0.45409664]
[1728480065488,0.001821,62013.0,62012.0,0.50237635]
[1728480065950,0.261621,62013.0,62012.0,0.08027971]
[1728480066180,0.261621,62013.0,62012.0,0.009]
[1728480066181,0.4838793,62013.0,62012.0,0.009]
[1728480067114,0.67020533,62013.0,62012.0,0.006]
[1728480067369,0.0763,62009.0,62006.0,0.161273]
[1728480067624,0.237567,62009.0,62006.0,0.161273]
[1728480068121,0.0763,62009.0,62008.0,0.161269]
[1728480068599,0.0763,62009.0,62008.0,0.184269]
[1728480069302,0.0773,62009.0,62007.0,0.28427]
[1728480069534,0.0763,62009.0,62007.0,0.28427]
[1728480069738,0.0763,62009.0,62008.0,0.004]
[1728480069739,0.237568,62009.0,62008.0,0.004]
[1728480069998,0.237568,62009.0,62008.0,0.027]
[1728480069999,0.53332589,62009.0,62008.0,0.027]
[1728480070925,0.37205789,62009.0,62008.0,0.188269]
[1728480071166,0.077621,62013.0,62012.0,0.161259]
[1728480071411,0.000821,62013.0,62012.0,0.63142267]
[1728480071636,0.000821,62013.0,62012.0,0.67970847]
[1728480072167,0.000821,62013.0,62012.0,0.63142267]
[1728480073076,0.000821,62013.0,62012.0,0.70385138]
[1728480073308,0.000821,62013.0,62012.0,0.63142267]
[1728480073531,0.000821,62013.0,62012.0,0.70384984]
[1728480073999,0.003821,62013.0,62012.0,0.70384984]
[1728480074688,0.000821,62013.0,62012.0,0.70384984]
[1728480074915,0.000821,62013.0,62012.0,0.63142267]
[1728480075139,0.001821,62013.0,62012.0,0.63842267]
[1728480075359,0.001821,62013.0,62012.0,0.71084797]
[1728480075580,0.002821,62013.0,62012.0,0.72230102]
[1728480076069,0.002821,62013.0,62012.0,0.64987567]
[1728480076319,0.002821,62013.0,62012.0,0.72230077]
[1728480077746,0.002821,62013.0,62012.0,0.53597474]
[1728480077993,0.078721,62013.0,62012.0,0.3751371]
[1728480078243,0.078721,62013.0,62012.0,0.3686841]
[1728480078474,0.078721,62013.0,62012.0,0.0832846]
[1728480078715,0.078721,62013.0,62012.0,0.035]
[1728480078716,0.2996005,62013.0,62012.0,0.035]
[1728480078947,0.2996005,62013.0,62012.0,0.012]
[1728480079678,0.078721,62013.0,62012.0,0.173259]
[1728480079900,0.078721,62013.0,62012.0,0.32909664]
[1728480079901,0.001821,62013.0,62012.0,0.32909664]
[1728480080166,0.000821,62013.0,62012.0,0.44509664]
[1728480080391,0.003821,62013.0,62012.0,0.44509664]
[1728480080850,0.001821,62013.0,62012.0,0.49338609]
[1728480081303,0.002821,62013.0,62012.0,0.50038609]
[1728480081762,0.002821,62013.0,62012.0,0.45209664]
[1728480082475,0.002821,62013.0,62012.0,0.50457197]
[1728480082476,0.001821,62013.0,62012.0,0.50457197]
[1728480082701,0.001821,62013.0,62012.0,0.50457566]
[1728480082929,0.001821,62013.0,62012.0,0.52871805]
[1728480083171,0.001821,62013.0,62012.0,0.53371805]
[1728480083451,0.002821,62013.0,62012.0,0.53371805]
[1728480083684,0.002821,62013.0,62012.0,0.46127983]
[1728480084147,0.002821,62013.0,62012.0,0.53371805]
[1728480084641,0.002821,62013.0,62012.0,0.46127983]
[1728480085811,0.002821,62013.0,62012.0,0.53374702]
[1728480086043,0.002821,62013.0,62012.0,0.55786412]
[1728480086276,0.00236193,62013.0,62012.0,0.55786412]
[1728480086979,0.00236193,62013.0,62012.0,0.55986412]
[1728480087281,0.00236193,62013.0,62012.0,0.55786412]
[1728480088117,0.00236193,62013.0,62012.0,0.46127983]
[1728480088837,0.00236193,62013.0,62012.0,0.5579219]
[1728480089512,0.00236193,62013.0,62012.0,0.55792569]
[1728480089989,0.00236193,62013.0,62012.0,0.46127983]
[1728480090229,0.00236193,62013.0,62012.0,0.55792569]
[1728480090701,0.00236193,62013.0,62012.0,0.46127983]
[1728480091854,0.00236193,62013.0,62012.0,0.55792569]
[1728480093509,0.00236193,62013.0,62012.0,0.46127983]
[1728480094460,0.00236193,62013.0,62012.0,0.58212341]
[1728480099791,0.00236193,62013.0,62012.0,0.46127983]
[1728480100010,0.00236193,62013.0,62012.0,0.5821691]
[1728480102454,0.00236193,62013.0,62012.0,0.46127983]
[1728480103103,0.00236193,62013.0,62012.0,0.58217527]
[1728480104015,0.00236193,62013.0,62012.0,0.46127983]
[1728480106537,0.18505228,62020.0,62019.0,0.16124]
[1728480106756,0.18505228,62020.0,62019.0,0.18424]
[1728480107663,0.18505228,62020.0,62019.0,0.20843899]
[1728480109191,0.18505228,62020.0,62019.0,0.21143899]
[1728480110303,0.18587228,62020.0,62019.0,0.21143899]
[1728480111863,0.18587228,62020.0,62019.0,0.25980237]
[1728480112121,0.18587228,62020.0,62019.0,0.42064001]
[1728480113289,0.18587228,62020.0,62019.0,0.37227663]
[1728480113513,0.18587228,62020.0,62019.0,0.42064001]
[1728480113756,0.18587228,62020.0,62019.0,0.37227663]
[1728480114428,0.18587228,62020.0,62019.0,0.44482201]
[1728480114657,0.18587228,62020.0,62019.0,0.42062302]
[1728480114884,0.18587228,62020.0,62019.0,0.44483224]
[1728480115305,0.18587228,62020.0,62019.0,0.44485279]
[1728480116680,0.18587228,62020.0,62019.0,0.37228686]
[1728480118477,0.18587228,62020.0,62019.0,0.44488367]
[1728480118712,0.18587228,62020.0,62019.0,0.37228686]
[1728480119662,0.18587228,62020.0,62019.0,0.44488343]
[1728480119900,0.18587228,62020.0,62019.0,0.44488031]
[1728480120620,0.26777228,62020.0,62019.0,0.12280267]
[1728480120856,0.30248211,62020.0,62019.0,0.2114461]
[1728480121536,0.26777228,62020.0,62019.0,0.23565231]
[1728480122086,0.26777228,62020.0,62019.0,0.30824888]
[1728480122337,0.26777228,62020.0,62019.0,0.23565231]
[1728480122567,0.26777228,62020.0,62019.0,0.2114461]
[1728480122825,0.26777228,62020.0,62019.0,0.23565276]
[1728480123057,0.26777228,62020.0,62019.0,0.18724]
[1728480123316,0.26777228,62020.0,62019.0,0.28404323]
[1728480123783,0.26777228,62020.0,62019.0,0.44488087]
[1728480124041,0.00082,62020.0,62019.0,0.5976143]
[1728480124278,0.00082,62020.0,62019.0,0.59327648]
[1728480124502,0.00082,62020.0,62019.0,0.59753058]
[1728480124740,0.24183992,62027.0,62026.0,0.261222]
[1728480124973,0.24183992,62027.0,62026.0,0.5670749]
[1728480125215,0.24183992,62035.0,62034.0,0.161201]
[1728480125446,0.24183992,62035.0,62034.0,0.184201]
[1728480125706,0.077919,62038.0,62037.0,0.161194]
[1728480125946,0.077919,62038.0,62037.0,0.184194]
[1728480126913,0.077919,62038.0,62036.0,0.023]
[1728480127138,0.077919,62038.0,62036.0,0.184195]
[1728480127627,0.077919,62038.0,62032.0,0.07252468]
[1728480127628,0.2608,62035.0,62034.0,0.003]
[1728480127916,0.421999,62035.0,62034.0,0.003]
[1728480128140,0.238317,62028.0,62027.0,0.34183992]
[1728480128330,0.0771,62028.0,62027.0,0.34183992]
[1728480128588,0.238317,62028.0,62027.0,0.1]
[1728480129069,0.0771,62028.0,62027.0,0.1]
[1728480129311,0.18399854,62028.0,62027.0,0.26122]
[1728480129548,0.0781,62028.0,62027.0,0.106]
[1728480129791,0.0781,62028.0,62027.0,0.129]
[1728480130777,0.0781,62028.0,62027.0,0.29322]
[1728480131024,0.001,62028.0,62027.0,0.45405764]
[1728480131509,0.001,62028.0,62027.0,0.50236291]
[1728480131747,0.001,62028.0,62027.0,0.45405764]
[1728480132438,0.001,62028.0,62027.0,0.73663708]
[1728480132913,0.001,62028.0,62027.0,0.63987399]
[1728480133140,0.001,62028.0,62027.0,0.76082785]
[1728480133558,0.001,62028.0,62027.0,0.63987399]
[1728480133792,0.23967047,62035.0,62034.0,0.161201]
[1728480134022,0.23967047,62035.0,62034.0,0.34503864]
[1728480134264,0.000819,62038.0,62037.0,0.161194]
[1728480134507,0.000819,62038.0,62037.0,0.34503164]
[1728480136440,0.161195,62037.0,62033.0,0.123]
[1728480136693,0.236605,62033.0,62030.0,0.161211]
[1728480136937,0.236605,62033.0,62031.0,0.1]
[1728480137197,0.0754,62033.0,62031.0,0.1]
[1728480137438,0.0754,62033.0,62031.0,0.261209]
[1728480138172,0.0754,62033.0,62032.0,0.023]
[1728480138416,0.0754,62033.0,62029.0,0.023]
[1728480138417,0.36346584,62033.0,62029.0,0.023]
[1728480138662,0.36346584,62033.0,62030.0,0.161211]
[1728480138912,0.20226184,62033.0,62031.0,0.186209]
[1728480139143,0.20326184,62033.0,62031.0,0.191209]
[1728480139367,0.20226184,62033.0,62031.0,0.184209]
[1728480139635,0.0754,62033.0,62032.0,0.184207]
[1728480139897,0.0764,62033.0,62032.0,0.184207]
[1728480140130,0.0754,62033.0,62032.0,0.184207]
[1728480140377,0.0764,62033.0,62032.0,0.023]
[1728480140625,0.0764,62033.0,62032.0,0.184207]
[1728480141585,0.0754,62033.0,62032.0,0.184207]
[1728480141827,0.0754,62033.0,62032.0,0.188207]
[1728480144659,0.0754,62033.0,62032.0,0.189207]
[1728480147204,0.07622,62033.0,62032.0,0.189207]
[1728480147708,0.00082,62033.0,62032.0,0.45004464]
[1728480149077,0.00082,62033.0,62032.0,0.44908649]
[1728480154298,0.00082,62033.0,62032.0,0.64301583]
[1728480155257,0.00082,62033.0,62032.0,0.44908649]
[1728480158095,0.26942,62033.0,62032.0,0.44908649]
[1728480159314,0.26942,62033.0,62032.0,0.45072649]
[1728480159556,0.26942,62033.0,62032.0,0.28988885]
[1728480159784,0.3125633,62033.0,62032.0,0.02868185]
[1728480160012,0.4737673,62033.0,62032.0,0.02868185]
[1728480160270,0.3125633,62033.0,62032.0,0.02868185]
[1728480160496,0.4737673,62033.0,62032.0,0.00664]
[1728480160956,0.3125633,62033.0,62032.0,0.167847]
[1728480161201,0.3125633,62033.0,62032.0,0.166847]
[1728480161443,0.3125633,62033.0,62032.0,0.00564]
[1728480161676,0.3145633,62033.0,62032.0,0.00164]
[1728480161903,0.4757673,62033.0,62032.0,0.00164]
[1728480162169,0.27142,62033.0,62032.0,0.00264]
[1728480162415,0.432624,62033.0,62032.0,0.00264]
[1728480164982,0.27142,62033.0,62032.0,0.00264]
[1728480165211,0.432624,62033.0,62032.0,0.00264]
[1728480165663,0.27142,62033.0,62032.0,0.00264]
[1728480165893,0.27142,62033.0,62032.0,0.186847]
[1728480167126,0.27142,62033.0,62032.0,0.02564]
[1728480167382,0.347002,62033.0,62032.0,0.02564]
[1728480167617,0.347002,62033.0,62032.0,0.00264]
[1728480167618,0.508206,62033.0,62032.0,0.00264]
[1728480168124,0.347002,62033.0,62032.0,0.00264]
[1728480168369,0.508206,62033.0,62032.0,0.00264]
[1728480169290,0.432624,62033.0,62032.0,0.00264]
[1728480169753,0.61844035,62033.0,62032.0,0.00264]
[1728480170979,1.02611791,62033.0,62032.0,0.00264]
[1728480171215,1.02611791,62033.0,62031.0,0.03]
[1728480171216,0.166207,62032.0,62031.0,0.03]
[1728480171450,0.65471916,62032.0,62031.0,0.03]
[1728480171700,0.43873,62023.0,62022.0,0.0494867]
[1728480171924,0.62454635,62023.0,62022.0,0.0494867]
[1728480172157,0.161238,62020.0,62019.0,0.00164]
[1728480172404,0.239738,62020.0,62019.0,0.00164]
[1728480172638,0.37809323,62020.0,62019.0,0.00164]
[1728480174084,0.56489323,62020.0,62019.0,0.00164]
[1728480174353,0.56889323,62020.0,62019.0,0.00164]
[1728480175587,0.56989323,62020.0,62019.0,0.00164]
[1728480177214,0.73573087,62020.0,62019.0,0.00164]
[1728480178199,0.57489323,62020.0,62019.0,0.00164]
[1728480178440,0.57389323,62020.0,62019.0,0.00164]
[1728480178679,0.440538,62020.0,62019.0,0.00264]
[1728480179662,0.436538,62020.0,62019.0,0.00264]
[1728480180121,0.447538,62020.0,62019.0,0.00364]
[1728480180363,0.5429796,62020.0,62019.0,0.00264]
[1728480180599,0.5319796,62020.0,62019.0,0.00164]
[1728480180823,0.5359796,62020.0,62019.0,0.00164]
[1728480181058,0.5349796,62020.0,62019.0,0.00164]
[1728480182015,0.5359796,62020.0,62019.0,0.00164]
[1728480182685,0.5409796,62020.0,62019.0,0.00164]
[1728480184576,0.430538,62020.0,62019.0,0.00164]
[1728480193580,0.435538,62020.0,62019.0,0.00164]
[1728480193810,0.59637564,62020.0,62019.0,0.00164]
[1728480194760,0.59537564,62020.0,62019.0,0.00164]
[1728480195060,0.60137564,62020.0,62019.0,0.00164]
[1728480195290,0.75318225,62020.0,62019.0,0.00164]
[1728480195521,0.76418225,62020.0,62019.0,0.00264]
[1728480195987,0.75318225,62020.0,62019.0,0.00164]
[1728480196438,0.75718225,62020.0,62019.0,0.00164]
[1728480203384,0.80728176,62020.0,62019.0,0.00164]
[1728480204326,1.04912168,62020.0,62019.0,0.00164]
[1728480204559,0.2785,62011.0,62010.0,0.0495361]
[1728480204802,0.439774,62006.0,62005.0,0.24183992]
[1728480205061,0.8365275,62006.0,62005.0,0.24183992]
[1728480205286,0.166285,62002.0,62001.0,0.001642]
[1728480205519,0.90925544,62002.0,62001.0,0.001642]
[1728480205765,0.90725544,62002.0,62001.0,0.001642]
[1728480205991,0.90725544,62002.0,62001.0,0.031642]
[1728480206461,0.90725544,62002.0,61992.0,0.00082]
[1728480206462,0.166308,61993.0,61992.0,0.00082]
[1728480206703,0.83912443,61993.0,61992.0,0.00082]
[1728480206954,0.88921473,61993.0,61992.0,0.00082]
[1728480207438,0.83912443,61993.0,61992.0,0.00082]
[1728480207680,0.84512443,61993.0,61992.0,0.00082]
[1728480207936,0.83912443,61993.0,61992.0,0.00082]
[1728480208407,0.84612443,61993.0,61992.0,0.00082]
[1728480209005,0.85512443,61993.0,61992.0,0.00182]
[1728480219662,0.84612443,61993.0,61992.0,0.00082]
[1728480219869,0.83912443,61993.0,61992.0,0.00082]
[1728480220085,0.84012443,61993.0,61992.0,0.00082]
[1728480220509,0.49347044,61993.0,61992.0,0.00082]
[1728480220757,0.67928679,61993.0,61992.0,0.00082]
[1728480220985,0.68028679,61993.0,61992.0,0.00082]
[1728480221200,0.68028679,61993.0,61992.0,0.00182]
[1728480221636,0.67828679,61993.0,61992.0,0.00182]
[1728480221905,0.61662435,61993.0,61992.0,0.00182]
[1728480222108,0.161308,61993.0,61992.0,0.00382]
[1728480222566,0.34712435,61993.0,61992.0,0.00382]
[1728480222773,0.34712435,61993.0,61992.0,0.00182]
[1728480223021,0.34712435,61993.0,61992.0,0.00082]
[1728480223231,0.47911849,61993.0,61992.0,0.00082]
[1728480223472,0.48311849,61993.0,61992.0,0.00082]
[1728480224143,0.48811849,61993.0,61992.0,0.00082]
[1728480225540,0.170308,61993.0,61992.0,0.00082]
[1728480230663,0.009,61993.0,61992.0,0.00082]
[1728480230945,0.170308,61993.0,61992.0,0.00082]
[1728480234040,0.35612435,61993.0,61992.0,0.00082]
[1728480236198,0.61752435,61993.0,61992.0,0.00082]
[1728480236415,0.93440092,61993.0,61992.0,0.00082]
[1728480238031,0.92940092,61993.0,61992.0,0.00082]
[1728480238742,0.93440092,61993.0,61992.0,0.00082]
[1728480239189,0.98452243,61993.0,61992.0,0.00082]
[1728480239434,0.98652243,61993.0,61992.0,0.00082]
[1728480239669,0.35215535,61981.0,61980.0,0.0504933]
[1728480239909,0.35215535,61981.0,61980.0,0.00082]
[1728480240383,0.51299299,61981.0,61980.0,0.00082]
[1728480240599,0.58989299,61981.0,61980.0,0.00082]
[1728480240821,0.64002226,61981.0,61980.0,0.00082]
[1728480241045,0.80782887,61981.0,61980.0,0.00082]
[1728480241333,0.80282887,61981.0,61980.0,0.00082]
[1728480241572,0.80982887,61981.0,61980.0,0.00082]
[1728480241797,1.00452887,61981.0,61980.0,0.00082]
[1728480242025,1.10452887,61981.0,61980.0,0.00082]
[1728480242282,0.43795,61977.0,61976.0,0.00082]
[1728480242519,0.62378435,61970.0,61969.0,0.00164]
[1728480242754,0.78462199,61970.0,61969.0,0.00164]
[1728480244410,0.78662199,61970.0,61969.0,0.00164]
[1728480244624,0.78862199,61970.0,61969.0,0.00164]
[1728480245105,0.79362199,61970.0,61969.0,0.00164]
[1728480245330,0.9544286,61970.0,61969.0,0.00164]
[1728480245581,0.9514286,61970.0,61969.0,0.00164]
[1728480245818,0.9504286,61970.0,61969.0,0.00164]
[1728480246035,0.78959096,61970.0,61969.0,0.00164]
[1728480246505,0.78559096,61970.0,61969.0,0.00164]
[1728480246722,0.78559096,61970.0,61969.0,0.00264]
[1728480246723,0.78659096,61970.0,61969.0,0.00264]
[1728480247157,0.78559096,61970.0,61969.0,0.00164]
[1728480247397,0.78659096,61970.0,61969.0,0.00264]
[1728480251465,0.9474286,61970.0,61969.0,0.00264]
[1728480252391,0.78159096,61970.0,61969.0,0.00264]
[1728480252616,0.163368,61970.0,61969.0,0.00264]
[1728480260575,0.162368,61970.0,61969.0,0.00164]
[1728480260785,0.161368,61970.0,61969.0,0.00464]
[1728480260997,0.165368,61970.0,61969.0,0.00464]
[1728480261428,0.165368,61970.0,61969.0,0.00164]
[1728480261661,0.170368,61970.0,61969.0,0.00164]
[1728480263808,0.30330263,61970.0,61969.0,0.00164]
[1728480266070,0.170368,61970.0,61969.0,0.00164]
[1728480273266,0.009,61970.0,61969.0,0.02464]
[1728480273494,0.009,61970.0,61969.0,0.44684864]
[1728480274167,0.004,61970.0,61969.0,0.45098613]
[1728480274386,0.001642,61975.0,61974.0,0.184357]
[1728480275313,0.001642,61975.0,61974.0,0.254357]
[1728480276198,0.001642,61975.0,61974.0,0.184357]
[1728480276415,0.001642,61975.0,61974.0,0.023]
[1728480276636,0.001642,61975.0,61973.0,0.023]
[1728480277072,0.001642,61975.0,61974.0,0.03]
[1728480277073,0.162998,61975.0,61974.0,0.03]
[1728480277708,0.001642,61975.0,61974.0,0.027]
[1728480277935,0.161359,61974.0,61972.0,0.023]
[1728480278058,0.161359,61974.0,61973.0,0.032]
[1728480278253,0.163998,61975.0,61974.0,0.023]
[1728480278497,0.2707374,61975.0,61974.0,0.023]
[1728480278708,0.1093814,61975.0,61974.0,0.184357]
[1728480278925,0.1093814,61975.0,61974.0,0.023]
[1728480279137,0.35122132,61975.0,61973.0,0.005]
[1728480279368,0.27950369,61974.0,61973.0,0.028]
[1728480279587,0.161357,61974.0,61970.0,0.184367]
[1728480279802,0.161364,61972.0,61970.0,0.023]
[1728480280018,0.161363,61972.0,61970.0,0.023]
[1728480280640,0.001642,61975.0,61972.0,0.023]
[1728480280849,0.161362,61973.0,61970.0,0.184365]
[1728480281059,0.161362,61973.0,61970.0,0.192368]
[1728480281060,0.001,61972.0,61970.0,0.192368]
[1728480281270,0.16136,61973.0,61970.0,0.184368]
[1728480282111,0.001642,61975.0,61972.0,0.023]
[1728480282333,0.161365,61971.0,61970.0,0.027]
[1728480282742,0.162363,61972.0,61970.0,0.028]
[1728480282948,0.161363,61972.0,61970.0,0.023]
[1728480283189,0.161363,61972.0,61970.0,0.027]
[1728480283658,0.161363,61972.0,61970.0,0.023]
[1728480283880,0.162363,61972.0,61970.0,0.032]
[1728480284121,0.161365,61971.0,61970.0,0.009]
[1728480284356,0.238965,61971.0,61970.0,0.009]
[1728480284796,0.421565,61971.0,61970.0,0.009]
[1728480285675,0.421565,61971.0,61970.0,0.004]
[1728480285890,0.161368,61970.0,61969.0,0.00164]
[1728480286382,0.166368,61970.0,61969.0,0.00164]
[1728480287248,0.173368,61970.0,61969.0,0.00264]
[1728480287731,0.180368,61970.0,61969.0,0.00264]
[1728480287969,0.34117461,61970.0,61969.0,0.00264]
[1728480289126,0.77601225,61970.0,61969.0,0.00264]
[1728480289367,0.77801225,61970.0,61969.0,0.00264]
[1728480289634,0.82817012,61970.0,61969.0,0.00264]
[1728480290517,0.82817012,61970.0,61969.0,0.00264]
[1728480291175,0.82617012,61970.0,61969.0,0.00264]
[1728480291611,0.82817012,61970.0,61969.0,0.00264]
[1728480291816,0.82617012,61970.0,61969.0,0.00264]
[1728480293182,0.77601225,61970.0,61969.0,0.00264]
[1728480294089,0.61517461,61970.0,61969.0,0.00264]
[1728480299173,0.61017461,61970.0,61969.0,0.00264]
[1728480299647,0.61517461,61970.0,61969.0,0.00264]
[1728480300332,0.61017461,61970.0,61969.0,0.00264]
[1728480300588,0.61517461,61970.0,61969.0,0.00264]
[1728480300827,0.61017461,61970.0,61969.0,0.00264]
[1728480301046,0.014,61970.0,61969.0,0.00264]
[1728480301594,0.014,61970.0,61969.0,0.187011]
[1728480301835,0.014,61970.0,61969.0,0.02564]
[1728480302090,0.175368,61970.0,61969.0,0.02564]
[1728480302531,0.168368,61970.0,61969.0,0.02564]
[1728480302764,0.161368,61970.0,61969.0,0.02664]
[1728480302945,0.161368,61970.0,61969.0,0.02964]
[1728480303389,0.161368,61970.0,61969.0,0.02664]
[1728480304347,0.161368,61970.0,61969.0,0.02464]
[1728480304567,0.162368,61970.0,61969.0,0.02464]
[1728480304803,0.43008435,61970.0,61969.0,0.02464]
[1728480306627,0.43008435,61970.0,61969.0,0.00164]
[1728480307078,0.43508435,61970.0,61969.0,0.00164]
[1728480310029,0.77702199,61970.0,61969.0,0.00164]
[1728480310295,0.9398286,61970.0,61969.0,0.00164]
[1728480310520,0.9899207,61970.0,61969.0,0.00164]
[1728480310967,0.9889207,61970.0,61969.0,0.00164]
[1728480311229,1.13722649,61970.0,61969.0,0.00164]
[1728480311484,0.005,61958.0,61957.0,0.24183992]
[1728480311704,0.428102,61957.0,61956.0,0.0515103]
[1728480311932,0.77475599,61957.0,61956.0,0.00164]
[1728480313382,0.78175599,61957.0,61956.0,0.00264]
[1728480313576,0.9425626,61957.0,61956.0,0.00264]
[1728480313818,0.9465626,61957.0,61956.0,0.00264]
[1728480314301,0.61991835,61957.0,61956.0,0.00264]
[1728480314521,0.172402,61957.0,61956.0,0.00264]
[1728480315201,0.35821835,61957.0,61956.0,0.00264]
[1728480315427,0.60005827,61957.0,61956.0,0.00264]
[1728480315647,0.63181835,61957.0,61956.0,0.00264]
[1728480315875,0.76025968,61957.0,61956.0,0.00264]
[1728480318596,0.92109732,61957.0,61956.0,0.00264]
[1728480319102,0.92309732,61957.0,61956.0,0.00264]
[1728480319596,0.92109732,61957.0,61956.0,0.00264]
[1728480322019,0.92609732,61957.0,61956.0,0.00264]
[1728480324081,1.16793724,61957.0,61956.0,0.00264]
[1728480324304,0.92609732,61957.0,61956.0,0.00264]
[1728480325179,0.91909732,61957.0,61956.0,0.00164]
[1728480325662,0.92009732,61957.0,61956.0,0.00164]
[1728480325892,0.435002,61957.0,61956.0,0.00164]
[1728480326133,0.163402,61957.0,61956.0,0.00164]
[1728480326344,0.003,61957.0,61956.0,0.264044]
[1728480326576,0.001,61957.0,61956.0,0.264044]